bitfinex/quotes_SOLUSD_20260220
["timestamp","ask_amount","ask_price","bid_price","bid_amount"]
[1771599949937,1.06415747,84.181,83.951,47.64665256]
[1771599949938,1.06415747,84.179,83.971,11.9088733]
[1771599950139,1.06415747,84.177,83.975,29.77047677]
[1771599950439,576.11897743,84.184,83.98,18.21954461]
[1771599950440,1.06415747,84.175,83.98,18.21954461]
[1771599950635,1.06415747,84.175,83.975,29.77047677]
[1771599950636,1.06415747,84.173,83.975,29.77047677]
[1771599950831,1.06415747,84.171,83.975,29.77047677]
[1771599951034,1.06415747,84.171,83.971,11.9088733]
[1771599951241,1.06415747,84.167,83.971,41.68105655]
[1771599951556,1.06415747,84.165,83.971,11.9088733]
[1771599951764,1.06415747,84.163,83.96,41.68651737]
[1771599951964,1.06415747,84.161,83.96,41.68651737]
[1771599952256,576.2284953,84.168,83.954,11.91114515]
[1771599952257,1.06415747,84.159,83.954,11.91114515]
[1771599952450,1.06415747,84.158,83.97,18.21954461]
[1771599952639,1.06415747,84.157,83.97,18.21954461]
[1771599952840,1.06415747,84.155,83.97,18.21954461]
[1771599953035,1.06415747,84.153,83.96,18.21954461]
[1771599953267,1.06415747,84.151,83.954,11.91114515]
[1771599953433,1.06415747,84.149,83.954,11.91114515]
[1771599953638,1.06415747,84.147,83.954,11.91114515]
[1771599953833,1.06415747,84.145,83.954,11.91114515]
[1771599954047,1.06415747,84.143,83.96,18.21954461]
[1771599954254,1.06415747,84.143,83.97,18.21954461]
[1771599954460,1.06415747,84.141,83.97,18.21954461]
[1771599954644,1.06415747,84.141,83.96,18.21954461]
[1771599954839,1.06415747,84.141,83.954,11.91114515]
[1771599954840,1.06415747,84.139,83.954,11.91114515]
[1771599955046,1.06415747,84.137,83.954,11.91114515]
[1771599955248,1.06415747,84.135,83.92,18.21954461]
[1771599955457,1.06415747,84.132,83.903,41.71483736]
[1771599955754,1.06415747,84.129,83.903,11.91852496]
[1771599956134,1.06415747,84.126,83.903,11.91852496]
[1771599956339,1.06415747,84.123,83.903,11.91852496]
[1771599956538,1.06415747,84.121,83.91,18.21954461]
[1771599956740,1.06415747,84.121,83.92,18.21954461]
[1771599956953,1.06415747,84.119,83.911,0.28432314]
[1771599957239,1.06415747,84.115,83.92,18.21954461]
[1771599957440,1.06415747,84.115,83.912,41.71036322]
[1771599957639,576.58471629,84.116,83.912,11.91724663]
[1771599957640,1.06415747,84.113,83.912,11.91724663]
[1771599957852,1.06415747,84.113,83.901,11.91880907]
[1771599958160,1.06415747,84.111,83.901,41.71583175]
[1771599958455,1.06415747,84.109,83.901,41.71583175]
[1771599958657,1.06415747,84.107,83.901,11.91880907]
[1771599958860,1.06415747,84.105,83.901,41.71583175]
[1771599959071,1.06415747,84.103,83.901,41.71583175]
[1771599959358,1.06415747,84.101,83.901,41.71583175]
[1771599959551,1.06415747,84.101,83.93,18.21954461]
[1771599959953,1.06415747,84.101,83.91,18.21954461]
[1771599960138,1.06415747,84.101,83.911,0.28432314]
[1771599960345,1.06415747,84.099,83.92,18.21954461]
[1771599960544,1.06415747,84.099,83.902,0.28432314]
[1771599960743,1.06415747,84.099,83.901,41.71583175]
[1771599960953,1.06415747,84.097,83.901,11.91880907]
[1771599961163,1.06415747,84.096,83.901,41.71583175]
[1771599961461,1.06415747,84.094,83.92,18.21954461]
[1771599961775,1.06415747,84.094,83.902,0.28432314]
[1771599962069,1.06415747,84.094,83.92,18.21954461]
[1771599962250,1.06415747,84.094,83.901,41.71583175]
[1771599962452,1.06415747,84.092,83.901,196.66034969]
[1771599962642,1.06415747,84.092,83.91,18.21954461]
[1771599962841,505.38081927,84.095,83.91,18.21954461]
[1771599962842,35.7888458,84.091,83.91,18.21954461]
[1771599963042,1.06415747,84.09,83.902,0.28432314]
[1771599963340,1.06415747,84.087,83.92,18.21954461]
[1771599963743,1.06415747,84.087,83.93,18.21954461]
[1771599963952,1.06415747,84.087,83.94,18.21954461]
[1771599964180,1.06415747,84.087,83.921,0.28432314]
[1771599964341,1.06415747,84.087,83.9,12.11882768]
[1771599964647,1.06415747,84.085,83.9,41.91620551]
[1771599964850,12.33633248,84.085,83.9,12.11882768]
[1771599965155,1.06415747,84.083,83.9,12.11882768]
[1771599965460,1.06415747,84.081,83.9,60.13575012]
[1771599966075,1.06415747,84.081,83.94,18.21954461]
[1771599966243,1.06415747,84.081,83.91,18.21954461]
[1771599966441,1.06415747,84.081,83.9,60.13575012]
[1771599966666,1.06415747,84.081,83.91,18.21954461]
[1771599966849,1.06415747,84.081,83.901,0.14216157]
[1771599966850,1.06415747,84.08,83.92,18.21954461]
[1771599967051,1.06415747,84.08,83.93,18.21954461]
[1771599967358,1.06415747,84.078,83.931,41.70092098]
[1771599969459,1.06415747,84.076,83.921,41.70583378]
[1771599969868,1.06415747,84.076,83.93,18.2336296]
[1771599970052,1.06415747,84.076,83.94,18.2336296]
[1771599970243,1.06415747,84.076,83.95,18.2336296]
[1771599970451,1.06415747,84.076,83.921,196.61342542]
[1771599970452,1.06415747,84.076,83.97,18.2336296]
[1771599970645,1.06415747,84.076,83.99,18.2336296]
[1771599970852,41.6285072,84.077,84.0,18.2336296]
[1771599971167,89.203944,84.077,84.0,18.2336296]
[1771599971367,11.8938592,84.077,84.02,18.2336296]
[1771599971546,47.54370228,84.134,84.05,18.2336296]
[1771599971755,47.54370228,84.134,84.03,18.2336296]
[1771599971945,1.06415747,84.133,84.03,18.2336296]
[1771599972146,1.06415747,84.133,84.04,18.2336296]
[1771599972357,89.13821175,84.139,84.06,18.2336296]
[1771599972650,89.13821175,84.139,84.08,18.2336296]
[1771599972651,41.59783215,84.139,84.08,18.2336296]
[1771599972966,41.59783215,84.139,84.06,18.2336296]
[1771599973150,136.67859135,84.139,84.001,0.28432314]
[1771599973361,243.64444546,84.139,84.05,18.2336296]
[1771599973665,1.06415747,84.136,84.041,41.64633928]
[1771599974173,1.06415747,84.136,84.031,11.9003701]
[1771599974347,1.06415747,84.136,84.04,18.2336296]
[1771599974544,1.06415747,84.136,84.031,11.9003701]
[1771599974745,1.06415747,84.136,84.025,11.90108817]
[1771599975163,1.06415747,84.136,84.03,18.2336296]
[1771599975365,1.06415747,84.136,84.025,11.90108817]
[1771599975567,1.06415747,84.155,84.061,41.63643068]
[1771599976047,1.06415747,84.155,84.061,11.89612305]
[1771599976754,1.06415747,84.155,84.05,59.87550943]
[1771599976944,1.06415747,84.155,84.06,18.2336296]
[1771599977145,1.06415747,84.155,84.05,59.87550943]
[1771599977348,1.06415747,84.155,84.06,18.2336296]
[1771599977664,1.06415747,84.153,84.061,41.63643068]
[1771599977983,1.06415747,84.153,84.07,18.2336296]
[1771599978149,41.59041755,84.154,84.09,18.2336296]
[1771599978660,41.59041755,84.154,84.1,18.2336296]
[1771599978876,11.88297644,84.154,84.1,18.2336296]
[1771599979186,11.88297644,84.154,84.061,196.28603036]
[1771599979187,5.36086188,84.091,84.08,18.2336296]
[1771599979349,5.36086188,84.153,84.062,0.28432314]
[1771599979669,5.36086188,84.151,84.081,11.89329337]
[1771599979860,1.06415747,84.14,84.04,18.2336296]
[1771599980054,1.06415747,84.127,84.04,18.2336296]
[1771599980254,291.13984214,84.152,84.05,18.2336296]
[1771599980255,1.06415747,84.148,84.05,18.2336296]
[1771599980574,6.42501935,84.145,84.051,0.06636231]
[1771599980872,1.06415747,84.137,84.051,0.06636231]
[1771599981070,6.42501935,84.151,84.061,0.06636231]
[1771599981245,52.60819037,84.082,84.081,0.06636231]
[1771599981453,5.36086188,84.149,84.081,0.06636231]
[1771599981772,57.96905225,84.082,84.081,0.06636231]
[1771599981961,57.96905225,84.068,84.067,0.06463508]
[1771599982572,57.96905225,84.068,84.03,18.2336296]
[1771599982573,52.60819037,84.068,84.014,11.9027781]
[1771599982753,1.09647501,84.107,84.03,18.2336296]
[1771599982959,1.09647501,84.146,84.04,18.2336296]
[1771599983154,1.09647501,84.146,84.015,0.28432314]
[1771599983480,1.09647501,84.146,84.06,18.2336296]
[1771599983780,148.55309287,84.145,84.071,11.89470804]
[1771599984283,1.09647501,84.144,84.061,11.89612305]
[1771599984854,1.09647501,84.144,84.061,41.63643068]
[1771599985055,1.09647501,84.144,84.053,11.89717215]
[1771599985276,1.09647501,84.144,84.06,18.2336296]
[1771599985682,1.09647501,84.142,84.04,18.2336296]
[1771599986190,1.09647501,84.142,84.02,18.2336296]
[1771599986351,1.09647501,84.142,84.011,41.66121102]
[1771599986556,291.17098267,84.143,84.011,41.66121102]
[1771599986557,1.09647501,84.141,84.011,41.66121102]
[1771599986888,1.09647501,84.141,84.05,18.2336296]
[1771599987059,1.09647501,84.141,84.04,18.2336296]
[1771599987664,1.09647501,84.141,84.03,18.2336296]
[1771599987880,1.09647501,84.139,84.04,18.2336296]
[1771599988255,1.09647501,84.139,84.032,0.28432314]
[1771599988452,1.09647501,84.139,84.04,18.2336296]
[1771599988870,1.09647501,84.139,84.031,41.65129535]
[1771599989479,1.09647501,84.139,83.975,41.67907114]
[1771599989693,9.61055884,84.138,83.975,41.67907114]
[1771599989994,1.09647501,84.135,83.975,29.7707651]
[1771599990287,1.09647501,84.135,83.98,18.2336296]
[1771599990473,1.09647501,84.135,83.99,18.2336296]
[1771599990782,1.09647501,84.135,84.0,18.2336296]
[1771599991087,1.09647501,84.135,83.975,29.7707651]
[1771599991088,1.09647501,84.135,84.02,18.2336296]
[1771599991288,1.09647501,84.135,84.03,18.2336296]
[1771599991493,1.09647501,84.135,83.975,29.7707651]
[1771599991494,1.09647501,84.135,84.012,1.19030614]
[1771599991672,1.09647501,84.135,84.03,18.2336296]
[1771599991978,1.09647501,84.133,84.031,41.65129535]
[1771599992178,1.09647501,84.133,84.032,0.28432314]
[1771599992377,1.09647501,84.133,84.05,18.2336296]
[1771599992600,1.09647501,84.133,84.031,41.65129535]
[1771599992806,1.09647501,84.133,84.032,0.28432314]
[1771599992978,89.14350915,84.134,84.06,18.2336296]
[1771599993166,1.09647501,84.133,84.04,18.2336296]
[1771599993371,1.09647501,84.133,84.031,41.65129535]
[1771599993673,148.57251525,84.134,84.06,18.2336296]
[1771599993867,48.63341579,84.146,84.07,18.2336296]
[1771599993868,41.594866,84.145,84.07,18.2336296]
[1771599994195,42.69134101,84.145,84.061,41.63643068]
[1771599994367,42.69134101,84.145,84.039,47.5964877]
[1771599994368,1.09647501,84.144,84.027,11.9009366]
[1771599994569,1.09647501,84.144,84.03,18.2336296]
[1771599994784,1.09647501,84.144,84.04,18.2336296]
[1771599995070,1.09647501,84.144,84.03,18.2336296]
[1771599995693,1.09647501,84.144,84.04,18.2336296]
[1771599995868,1.09647501,84.142,84.041,41.64633928]
[1771599996069,1.09647501,84.142,84.042,0.28432314]
[1771599996293,1.09647501,84.142,84.041,41.64633928]
[1771599996470,1.09647501,84.142,84.042,0.28432314]
[1771599997171,1.09647501,84.142,84.06,18.2336296]
[1771599997368,41.59585466,84.143,84.08,18.2336296]
[1771599997572,41.59585466,84.143,84.07,18.2336296]
[1771599997883,1.09647501,84.142,84.06,18.2336296]
[1771599998076,1.09647501,84.142,84.043,41.6453482]
[1771599998400,1.09647501,84.142,84.044,0.14216157]
[1771599998595,1.09647501,84.169,84.043,41.6453482]
[1771599998791,1.09647501,84.163,84.04,18.2336296]
[1771599998975,1.09647501,84.163,84.05,18.2336296]
[1771599999400,1.09647501,84.163,84.03,41.65179102]
[1771599999575,1.09647501,84.162,83.98,18.2336296]
[1771599999770,1.09647501,84.16,83.98,18.2336296]
[1771599999988,1.09647501,84.157,83.99,11.67399568]
[1771600000295,1.09647501,84.154,83.963,136.96509173]
[1771600000597,35.75,84.152,83.98,11.67399568]
[1771600000805,35.75,84.15,83.98,11.67399568]
[1771600000976,1.09647501,84.148,84.0,11.67399568]
[1771600001385,1.09647501,84.146,84.0,11.67399568]
[1771600001589,1.09647501,84.146,83.964,1.19098661]
[1771600001779,1.09647501,84.144,83.981,0.14216157]
[1771600002077,1.09647501,84.142,84.0,18.20683516]
[1771600002296,1.09647501,84.122,83.991,0.28432314]
[1771600002472,0.28432314,84.105,84.0,18.20683516]
[1771600002798,0.28432314,84.069,83.981,41.67609339]
[1771600002974,1.09647501,84.068,83.981,41.67609339]
[1771600003175,1.09647501,84.064,83.981,41.67609339]
[1771600003387,0.28432314,84.06,83.981,41.67609339]
[1771600003593,1.09647501,84.059,83.981,11.90745525]
[1771600003975,41.63791667,84.058,83.99,18.20683516]
[1771600004193,41.63791667,84.058,83.935,95.31123574]
[1771600004194,1.09647501,84.056,83.935,95.31123574]
[1771600004493,1.09647501,84.032,83.95,18.20683516]
[1771600004670,1.09647501,84.018,83.941,41.69595309]
[1771600004877,1.09647501,84.008,83.941,41.69595309]
[1771600005179,1.09647501,84.0,83.895,47.67810641]
[1771600005372,1.09647501,83.998,83.941,11.91312945]
[1771600005576,1.09647501,83.988,83.916,29.79138137]
[1771600005781,1.09647501,83.978,83.9,0.2]
[1771600005975,0.28432314,83.967,83.9,0.2]
[1771600006203,1.09647501,83.973,83.9,12.11892498]
[1771600006404,41.67956748,83.974,83.9,60.12313797]
[1771600006580,41.67956748,83.974,83.9,41.91630281]
[1771600006780,41.67956748,83.974,83.9,60.12313797]
[1771600007103,11.90844785,83.974,83.91,18.20683516]
[1771600007398,11.90844785,83.974,83.9,12.11892498]
[1771600007399,1.09647501,83.968,83.9,12.11892498]
[1771600007699,41.67956748,83.974,83.9,41.91630281]
[1771600007897,29.77111963,83.974,83.91,18.20683516]
[1771600008400,11.90745525,83.981,83.91,18.20683516]
[1771600008606,1.09647501,83.979,83.9,41.91630281]
[1771600008903,1.09647501,83.969,83.9,12.11892498]
[1771600009110,0.28432314,83.954,83.9,0.2]
[1771600009397,1.09647501,83.945,83.9,0.2]
[1771600009695,1.09647501,83.945,83.9,1e-08]
[1771600009898,1.09647501,83.943,83.9,1e-08]
[1771600010394,41.69446296,83.944,83.9,1e-08]
[1771600010795,42.79093797,83.944,83.9,1e-08]
[1771600010997,1.09647501,83.943,83.9,1e-08]
[1771600011891,1.09647501,83.941,83.9,1e-08]
[1771600012496,1.09647501,83.941,83.841,11.92733865]
[1771600012892,0.28432314,83.926,83.841,11.92733865]
[1771600013205,0.28432314,83.902,83.836,11.92794593]
[1771600013394,0.28432314,83.889,83.83,0.1]
[1771600013594,1.09647501,83.888,83.83,0.1]
[1771600013800,0.14216157,83.871,83.83,0.1]
[1771600013994,11.92335666,83.869,83.83,0.1]
[1771600014197,11.92179303,83.88,83.83,0.1]
[1771600014389,41.72627562,83.88,83.83,0.1]
[1771600014583,1.09647501,83.878,83.83,0.1]
[1771600014785,89.41344777,83.88,83.791,11.93445596]
[1771600014786,1.09647501,83.874,83.791,11.93445596]
[1771600014984,1.09647501,83.868,83.791,41.77059587]
[1771600015806,1.09647501,83.858,83.789,12.19168221]
[1771600016009,1.09647501,83.845,83.79,11.9345984]
[1771600016304,1.09647501,83.845,83.789,0.25696]
[1771600016305,41.73971116,83.853,83.789,42.02844472]
[1771600016485,1.09647501,83.848,83.789,12.19159263]
[1771600016686,1.09647501,83.848,83.727,47.77427112]
[1771600016687,1.09647501,83.828,83.718,107.50354599]
[1771600016881,1.09647501,83.819,83.74,18.20683516]
[1771600017083,1.09647501,83.807,83.718,29.86215628]
[1771600017387,1.09647501,83.85,83.718,29.86215628]
[1771600017584,1.09647501,83.836,83.711,11.94586135]
[1771600017784,1.09647501,83.818,83.711,11.94586135]
[1771600018004,0.28432314,83.801,83.7,0.1]
[1771600018206,0.28432314,83.789,83.71,18.20683516]
[1771600018398,1.09647501,83.79,83.71,18.20683516]
[1771600018600,1.09647501,83.778,83.7,0.1]
[1771600018914,1.09647501,83.764,83.7,0.1]
[1771600019087,1.09647501,83.746,83.7,0.1]
[1771600019285,1.09647501,83.738,83.7,0.1]
[1771600019504,0.28432314,83.807,83.7,0.1]
[1771600019705,1.09647501,83.788,83.7,0.1]
[1771600019909,47.7130362,83.835,83.721,0.99191499]
[1771600020116,47.7130362,83.835,83.702,232.96934358]
[1771600020117,47.7130362,83.835,83.731,0.99191499]
[1771600020287,47.7130362,83.835,83.741,0.99191499]
[1771600020491,47.7130362,83.835,83.702,232.96934358]
[1771600020492,47.7130362,83.835,83.703,0.99191499]
[1771600020812,47.7130362,83.835,83.721,0.99191499]
[1771600021001,47.7130362,83.835,83.731,0.99191499]
[1771600021209,47.70826514,83.843,83.741,0.99191499]
[1771600021513,47.70349455,83.852,83.751,0.99191499]
[1771600021891,1.05272878,83.849,83.763,0.99191499]
[1771600022111,1.05272878,83.849,83.771,0.99191499]
[1771600022408,1.05272878,83.849,83.717,0.99191499]
[1771600022611,1.05272878,83.849,83.722,0.99191499]
[1771600022997,1.05272878,83.849,83.731,0.99191499]
[1771600023393,1.05272878,83.849,83.718,0.99191499]
[1771600023701,1.05272878,83.849,83.731,0.99191499]
[1771600024010,71.53353115,83.877,83.733,0.99191499]
[1771600024011,1.05272878,83.847,83.733,0.99191499]
[1771600025607,1.05272878,83.847,83.732,11.94286533]
[1771600025608,1.05272878,83.847,83.741,1.03337044]
[1771600025992,1.01492211,83.845,83.743,1.03337044]
[1771600026197,1.01492211,83.845,83.722,1.03337044]
[1771600026497,1.01492211,83.843,83.702,1.03337044]
[1771600026697,11.50824149,83.843,83.702,1.03337044]
[1771600026897,1.01492211,83.841,83.702,1.03337044]
[1771600027406,0.97605988,83.839,83.702,1.03337044]
[1771600027609,0.97605988,83.837,83.702,1.03337044]
[1771600027800,0.97605988,83.836,83.702,1.03337044]
[1771600028003,0.97605988,83.836,83.7,41.91600115]
[1771600028004,0.97605988,83.834,83.71,18.33826536]
[1771600028207,0.97605988,83.834,83.721,0.98338205]
[1771600028397,0.97605988,83.834,83.731,0.98338205]
[1771600029298,0.97605988,83.834,83.741,0.98338205]
[1771600029897,41.74867298,83.835,83.771,0.98338205]
[1771600030121,0.97605988,83.846,83.773,0.98338205]
[1771600030500,0.97605988,83.846,83.76,0.98338205]
[1771600030896,0.97605988,83.846,83.761,0.98338205]
[1771600031514,0.97605988,83.844,83.761,0.98338205]
[1771600032113,6.22770439,83.845,83.763,0.98338205]
[1771600032114,0.97605988,83.842,83.763,0.98338205]
[1771600032615,0.97605988,83.842,83.771,0.98338205]
[1771600033411,41.74468947,83.843,83.781,0.98338205]
[1771600033819,41.74468947,83.843,83.791,0.98338205]
[1771600034024,1.0615617,83.898,83.82,18.33826536]
[1771600034223,1.0615617,83.898,83.784,47.74168038]
[1771600034224,1.0615617,83.898,83.784,0.28432314]
[1771600034424,1.0615617,83.897,83.81,18.33826536]
[1771600034822,1.0615617,83.897,83.8,18.33826536]
[1771600035016,1.0615617,83.897,83.783,41.77458433]
[1771600035422,1.0615617,83.896,83.783,11.93559552]
[1771600035733,1.0615617,83.895,83.783,11.93559552]
[1771600035963,1.0615617,83.895,83.778,11.93624672]
[1771600036138,1.0615617,83.892,83.78,18.33826536]
[1771600036432,1.0615617,83.892,83.773,29.84248979]
[1771600036612,292.03866829,83.893,83.771,11.93730527]
[1771600036613,1.0615617,83.89,83.771,11.93730527]
[1771600037018,1.0615617,83.888,83.771,11.93730527]
[1771600037211,1.0615617,83.888,83.751,0.14216157]
[1771600037427,1.0615617,83.886,83.75,18.33826536]
[1771600037612,1.0615617,83.886,83.76,18.33826536]
[1771600037811,1.0615617,83.884,83.76,18.33826536]
[1771600038116,1.0615617,83.881,83.751,41.93270734]
[1771600038319,11.46883662,83.88,83.751,11.94015593]
[1771600038526,1.0615617,83.878,83.751,11.94015593]
[1771600038711,1.0615617,83.878,83.751,41.79054577]
[1771600038912,1.0615617,83.876,83.751,11.94015593]
[1771600039325,1.0615617,83.874,83.742,11.94143918]
[1771600039538,435.13507065,83.882,83.731,29.85746915]
[1771600039539,1.0615617,83.872,83.731,29.85746915]
[1771600039831,1.0615617,83.87,83.73,18.33826536]
[1771600040141,506.66412336,83.882,83.741,41.79553623]
[1771600040142,1.0615617,83.867,83.741,41.79553623]
[1771600040426,1.0615617,83.867,83.75,18.33826536]
[1771600040631,1.0615617,83.867,83.741,41.79553623]
[1771600040815,1.0615617,83.867,83.733,11.94262781]
[1771600041005,1.0615617,83.865,83.74,18.33826536]
[1771600041207,1.0615617,83.865,83.75,18.33826536]
[1771600041411,1.0615617,83.865,83.76,18.33826536]
[1771600042120,1.0615617,83.865,83.77,18.33826536]
[1771600042323,1.0615617,83.863,83.771,11.93730527]
[1771600042529,1.0615617,83.863,83.771,41.78056845]
[1771600042842,1.0615617,83.863,83.78,18.33826536]
[1771600043040,1.0615617,83.863,83.79,18.33826536]
[1771600043244,244.4433845,83.864,83.8,18.33826536]
[1771600043245,41.73423637,83.864,83.8,18.33826536]
[1771600043742,41.73423637,83.864,83.82,18.33826536]
[1771600043917,48.73442255,83.906,83.831,0.28432314]
[1771600044118,41.71384302,83.905,83.831,0.28432314]
[1771600044417,1.0615617,83.91,83.841,11.92733865]
[1771600044619,1.0615617,83.91,83.8,47.73215457]
[1771600044620,1.0615617,83.91,83.821,0.28432314]
[1771600045041,41.70787801,83.917,83.851,0.28432314]
[1771600045222,1.0615617,83.916,83.83,18.33826536]
[1771600045423,1.0615617,83.916,83.821,0.28432314]
[1771600045618,1.0615617,83.916,83.801,41.76561138]
[1771600045827,1.0615617,83.916,83.84,18.33826536]
[1771600046215,89.37402432,83.917,83.803,149.44366109]
[1771600046216,1.0615617,83.914,83.803,149.44366109]
[1771600046433,1.0615617,83.914,83.831,0.28432314]
[1771600046620,1.0615617,83.914,83.803,41.76461462]
[1771600046820,1.0615617,83.914,83.821,0.28432314]
[1771600047020,1.0615617,83.914,83.83,18.33826536]
[1771600047436,1.0615617,83.914,83.84,18.33826536]
[1771600047837,1.0615617,83.914,83.83,18.33826536]
[1771600048024,1.0615617,83.914,83.81,18.33826536]
[1771600048220,1.0615617,83.912,83.811,41.76062807]
[1771600049145,1.0615617,83.912,83.82,18.33826536]
[1771600049323,1.0615617,83.912,83.811,41.76062807]
[1771600049523,1.0615617,83.912,83.82,18.33826536]
[1771600049936,1.0615617,83.912,83.811,41.76062807]
[1771600050344,1.0615617,83.91,83.84,11.72259654]
[1771600050527,1.0615617,83.91,83.831,41.75066502]
[1771600050528,1.0615617,83.91,83.82,11.72259654]
[1771600050733,1.0615617,83.91,83.811,0.28432314]
[1771600050928,1.0615617,83.91,83.83,11.72259654]
[1771600051126,1.0615617,83.91,83.84,11.72259654]
[1771600051941,1.0615617,83.91,83.821,0.28432314]
[1771600052250,1.0615617,83.908,83.816,11.93086045]
[1771600052464,1.0615617,83.908,83.79,11.72259654]
[1771600053147,1.0615617,83.908,83.8,11.72259654]
[1771600054951,1.0615617,83.904,83.792,41.77009737]
[1771600055139,1.0615617,83.904,83.793,0.14216157]
[1771600055647,1.0615617,83.904,83.793,0.28432314]
[1771600055852,1.0615617,83.904,83.793,0.14216157]
[1771600056040,1.0615617,83.904,83.8,11.72259654]
[1771600056236,1.0615617,83.904,83.801,0.14216157]
[1771600056440,6.2076604,83.907,83.792,41.77009737]
[1771600056441,1.0615617,83.902,83.793,0.28432314]
[1771600057032,1.0615617,83.902,83.8,11.72259654]
[1771600057252,1.0615617,83.902,83.793,0.28432314]
[1771600057632,1.0615617,83.902,83.81,11.72259654]
[1771600058040,1.0615617,83.902,83.792,41.77009737]
[1771600058239,1.0615617,83.902,83.793,0.28432314]
[1771600058451,1.0615617,83.9,83.8,11.72259654]
[1771600058646,1.0615617,83.9,83.794,41.7691004]
[1771600058943,292.01082227,83.901,83.752,29.85003343]
[1771600058944,1.0615617,83.898,83.752,29.85003343]
[1771600059257,1.0615617,83.896,83.752,29.85003343]
[1771600059456,1.0615617,83.894,83.752,29.85003343]
[1771600059759,1.0615617,83.892,83.752,29.85003343]
[1771600060052,1.0615617,83.89,83.752,29.85003343]
[1771600060255,1.0615617,83.89,83.76,11.72259654]
[1771600060459,1.0615617,83.886,83.76,11.72259654]
[1771600060835,1.0615617,83.886,83.753,0.14216157]
[1771600060836,1.0615617,83.884,83.77,11.72259654]
[1771600061330,13.21618577,83.883,83.76,11.72259654]
[1771600061554,1.0615617,83.881,83.76,11.72259654]
[1771600061753,1.0615617,83.881,83.751,11.94015593]
[1771600061961,1.0615617,83.879,83.751,11.94015593]
[1771600062150,1.0615617,83.879,83.751,41.79054577]
[1771600062339,1.0615617,83.877,83.751,11.94015593]
[1771600062539,1.0615617,83.875,83.741,41.79553623]
[1771600062857,1.0615617,83.873,83.741,41.79553623]
[1771600063249,1.0615617,83.871,83.741,11.94158178]
[1771600063639,1.0615617,83.87,83.75,11.72259654]
[1771600063831,1.0615617,83.87,83.751,0.28432314]
[1771600064037,1.0615617,83.87,83.77,11.72259654]
[1771600064534,1.0615617,83.868,83.79,11.72259654]
[1771600064733,1.0615617,83.868,83.8,11.72259654]
[1771600065160,11.92335666,83.869,83.811,0.28432314]
[1771600065460,41.73174831,83.869,83.81,11.72259654]
[1771600065843,41.73174831,83.869,83.811,0.28432314]
[1771600066141,47.66182071,83.925,83.781,256.62142967]
[1771600066142,11.91568461,83.923,83.85,11.72259654]
[1771600066460,1.0615617,83.922,83.822,0.28432314]
[1771600066638,41.70589005,83.921,83.851,0.50210047]
[1771600066837,41.70589005,83.921,83.853,0.50210047]
[1771600067037,41.70589005,83.921,83.85,11.72259654]
[1771600067038,41.70589005,83.921,83.864,0.50210047]
[1771600067960,41.70589005,83.921,83.87,11.72259654]
[1771600068164,11.91596858,83.921,83.871,0.50323344]
[1771600068498,196.61348169,83.921,83.851,0.50323344]
[1771600068756,0.99027614,83.918,83.851,0.50323344]
[1771600069059,6.19933428,83.951,83.851,0.50323344]
[1771600069060,29.7841783,83.938,83.89,0.50435536]
[1771600069263,0.99027614,83.937,83.875,0.50435536]
[1771600069853,0.99027614,83.943,83.881,0.50547627]
[1771600070058,0.99027614,83.943,83.885,0.50547627]
[1771600070258,11.9127037,83.944,83.885,0.50547627]
[1771600070449,42.6847391,83.944,83.885,0.50547627]
[1771600070660,0.99027614,83.943,83.885,0.50547627]
[1771600070846,0.99027614,83.941,83.887,0.50658374]
[1771600071161,0.99027614,83.941,83.876,0.50658374]
[1771600072046,0.99027614,83.941,83.864,0.50767936]
[1771600072656,57.96905225,83.837,83.836,0.50876608]
[1771600072864,5.36086188,83.864,83.837,0.50876608]
[1771600073068,5.36086188,83.895,83.845,0.50876608]
[1771600073650,5.36086188,83.879,83.821,0.5322087]
[1771600073851,0.99027614,83.873,83.821,0.5322087]
[1771600074052,0.99027614,83.873,83.807,0.5322087]
[1771600074776,52.60819037,83.802,83.789,29.83654803]
[1771600074948,52.60819037,83.791,83.79,36.17301227]
[1771600075151,5.36086188,83.849,83.792,23.68180585]
[1771600075349,5.36086188,83.849,83.79,0.28432314]
[1771600075350,5.36086188,83.856,83.796,11.94802186]
[1771600075572,1.07766605,83.855,83.796,11.94802186]
[1771600075874,1.07766605,83.84,83.781,11.93588045]
[1771600076172,1.07766605,83.856,83.79,11.72259654]
[1771600076672,1.07766605,83.856,83.781,11.93588045]
[1771600076968,1.07766605,83.854,83.782,0.28432314]
[1771600077365,1.07766605,83.854,83.781,11.93588045]
[1771600077963,1.07766605,83.854,83.79,11.72259654]
[1771600078167,1.07766605,83.854,83.782,0.28432314]
[1771600078370,1.07766605,83.854,83.781,41.77558157]
[1771600078575,1.07766605,83.854,83.782,0.28432314]
[1771600078872,1.07766605,83.854,83.781,41.77558157]
[1771600079178,1.07766605,83.852,83.781,11.93588045]
[1771600079487,1.07766605,83.852,83.748,1.19405836]
[1771600079488,1.07766605,83.852,83.758,29.8477317]
[1771600079852,1.07766605,83.852,83.749,11.94044107]
[1771600080171,1.07766605,83.852,83.76,11.72259654]
[1771600080372,1.07766605,83.852,83.78,11.72259654]
[1771600080957,47.69524973,83.866,83.751,1.19401559]